Cogmind - Beta 10.2 @@@ ROGUE MODE // 2021.07.23 @ 18:08:48 Player: Burgers_Lettuce Result: Destroyed by G-47 Trooper with Particle Gun Performance ------------- Evolutions (2) 1000 Regions Visited (5) 1000 Robots Destroyed (10) 50 Value Destroyed (196) 196 Prototype IDs (1) 20 Alien Tech Used (0) 0 Bonus (127) 127 TOTAL SCORE: 2393 Bonus ------- Follower Combat Kills 127 Cogmind --------- Core Integrity 0/550 Matter 229/300 Energy 4/100 System Corruption 1% Temperature Cool (9) Movement Core (200) Ox3 Location -8/Materials Parts ------- > --- POWER (2) -------- (None) > --- PROPULSION (3) --- (None) > --- UTILITY (4) ------ Advanced Terrain Scan Processor Advanced Terrain Scan Processor Cloak of Protection Shield Generator > --- WEAPON (2) ------- (None) > --- INVENTORY (4) ---- Small Storage Unit Advanced Terrain Scan Processor Advanced Terrain Scan Processor Hacking Suite Peak State ------------ > --- POWER ------------ Light Ion Engine Light Ion Engine > --- PROPULSION ------- Wheel Combat Airjet Combat Airjet > --- UTILITY ---------- Small Storage Unit Improved Terrain Scanner Makeshift Terrain Scan Processor Cloak of Protection > --- WEAPON ----------- (None) > --- INVENTORY -------- Improved Light Armor Plating [Rating: 28] Favorites ----------- Power Light Nuclear Core Engine Light Ion Engine Power Core Light Nuclear Core Propulsion Wheel Treads Light Treads Wheel Wheel Hover Unit Combat Airjet Flight Unit Flight Unit Utility Small Storage Unit Device Terrain Scanner Storage Small Storage Unit Processor Advanced Terrain Scan Processor Protection Improved Light Armor Plating Weapon EM Pulse Gun Energy Gun EM Pulse Gun Ballistic Gun Gauss Rifle Launcher Grenade Launcher Build | -11 -10 -10 -10 -9 -8 ------- Run | Scr Mat Min Exi Min Mat Slots Evolved 4 | . . . . . 4 Power 1 | . . . . . 1 Propulsion 1 | . . . . . 1 Utility 2 | . . . . . 2 Weapon . | . . . . . . Parts Attached 39 | 6 6 4 2 8 13 Power 4 | 1 . 1 . 1 1 Engine 3 | 1 . . . 1 1 Core 1 | . . 1 . . . Reactor . | . . . . . . Propulsion 8 | 2 1 . 1 2 2 Treads 1 | 1 . . . . . Leg . | . . . . . . Wheel 4 | 1 1 . 1 . 1 Hover 2 | . . . . 2 . Flight 1 | . . . . . 1 Utility 15 | 1 2 . 1 3 8 Device 9 | . 2 . 1 3 3 Storage 2 | 1 . . . . 1 Processor 3 | . . . . . 3 Hackware . | . . . . . . Protection 1 | . . . . . 1 Artifact . | . . . . . . Weapon 12 | 2 3 3 . 2 2 Energy Gun 8 | 2 2 2 . . 2 Energy Cannon . | . . . . . . Ballistic Gun 1 | . . . . 1 . Ballistic Cannon . | . . . . . . Launcher 3 | . 1 1 . 1 . Special Weapon . | . . . . . . Impact Weapon . | . . . . . . Slashing Weapon . | . . . . . . Piercing Weapon . | . . . . . . Special Melee Weapon . | . . . . . . Unidentified Prototypes 1 | . . . 1 . . Parts Lost 17 | . 1 . . 5 11 Power 3 | . . . . 1 2 Propulsion 4 | . . . . . 4 Utility 4 | . . . . 1 3 Weapon 6 | . 1 . . 3 2 Highest Loss Streak 8 | . 1 . . 5 8 Average Slot Usage (%) 88 | . 90 94 94 88 51 Engine 2 | . 14 3 . . 4 Core 9 | . . 4 14 13 . Treads 8 | . 14 14 11 . . Wheel 15 | . 14 14 16 18 4 Hover 2 | . . . . 9 4 Device 8 | . 5 14 8 4 8 Storage 13 | . 14 14 14 14 9 Processor 1 | . . . . . 13 Energy Gun 24 | . 28 27 28 21 1 Naked Turns . | . . . . . . Heaviest Build 16 | 10 11 13 13 16 16 Greatest Support 44 | 20 10 10 20 44 44 Greatest Overweight (x) 5 | . 1 1 1 1 5 Average Overweight (x) . | . . . . . . Largest Inventory Capacity 6 | 6 6 6 6 6 6 Average Capacity 5 | 5 6 6 6 6 5 Most Carried 6 | 6 6 6 6 6 5 Average Carried 5 | 2 5 6 5 5 3 Final Capacity 6 | 6 6 6 6 6 4 Final Carried 6 | 6 6 6 6 5 4 Class Distribution -------------------- 36% | Commander-Mutant 35% | Scavenger-Mutant 27% | Mutant Dominant Class ---------------- Mutant | -10/Materials Mutant | -10/Mines Commander-Mutant | -10/Exiles Commander-Mutant | -9/Mines Mutant | -8/Materials Resources | -11 -10 -10 -10 -9 -8 ----------- Run | Scr Mat Min Exi Min Mat Matter Collected 484 | 188 93 114 . 89 . Remotely . | . . . . . . Salvage Created 199 | . 143 11 . 45 . Parts 22 | . 12 6 . 4 . Haulers Intercepted . | . . . . . . Recyclers Shooed . | . . . . . . Parts Field Recycled . | . . . . . . Retrieved Matter . | . . . . . . Parts Self-Destructed . | . . . . . . Prevented . | . . . . . . Kills | -11 -10 -10 -10 -9 -8 ------- Run | Scr Mat Min Exi Min Mat Combat Hostiles Destroyed 10 | . 5 3 . 2 . Guns 4 | . 4 . . . . AOE 6 | . 1 3 . 2 . Classes Destroyed 5 | . 3 . . 2 . Builder 1 | . 1 . . . . Swarmer 6 | . 3 3 . . . Grunt 2 | . 2 . . . . Demolisher 1 | . . . . 1 . Assembled 1 | . . . . 1 . Best Kill Streak 3 | . 3 3 . 1 . Combat Bots Only 3 | . 3 3 . 1 . Max Kills in Single Turn 2 | . 1 2 . 1 . Gunslinging . | . . . . . . Exploded 2 | . 1 2 . 1 . Melee . | . . . . . . Uniques/NPCs Destroyed . | . . . . . . Combat | -11 -10 -10 -10 -9 -8 -------- Run | Scr Mat Min Exi Min Mat Damage Taken 1948 | . 139 25 . 441 1343 Core 664 | . 6 18 . 80 560 Absorbed by Shields 26 | . . . . . 26 Core Remaining (%) 79 | 100 . . . 58 . Volleys Fired 20 | . 12 2 . 5 1 Largest 2 | . 2 2 . 2 2 Hottest 160 | . 80 70 . 68 160 Shots Fired 39 | . 24 4 . 9 2 Gun 34 | . 22 2 . 8 2 Cannon . | . . . . . . Launcher 5 | . 2 2 . 1 . Special . | . . . . . . Kinetic 4 | . . . . 4 . Thermal 12 | . 10 . . . 2 Explosive 5 | . 2 2 . 1 . Electromagnetic 18 | . 12 2 . 4 . Robot Hit Streak 7 | . 6 . . 7 5 Robot Miss Streak 3 | . 2 . . 3 1 Penetration Max . | . . . . . . Secondary Targets . | . . . . . . Shots Hit Robots 21 | . 13 . . 6 2 Core Hits 19 | . 9 3 . 4 3 Critical Hits . | . . . . . . Critical Kills . | . . . . . . Critical Parts Destroyed . | . . . . . . Melee Attacks . | . . . . . . Impact . | . . . . . . Slashing . | . . . . . . Piercing . | . . . . . . Sneak Attacks . | . . . . . . Combat Hostiles . | . . . . . . Follow-up Attacks . | . . . . . . Damage Inflicted 721 | . 315 164 . 170 72 Guns 301 | . 189 11 . 46 55 Cannons . | . . . . . . Explosions 397 | . 126 153 . 118 . Melee . | . . . . . . Ramming 23 | . . . . 6 17 Kinetic 23 | . . . . 23 . Thermal 192 | . 77 . . 60 55 Explosive 337 | . 126 153 . 58 . Electromagnetic 146 | . 112 11 . 23 . Impact . | . . . . . . Slashing . | . . . . . . Piercing . | . . . . . . Highest Corruption 2 | . 2 2 2 2 1 Average Corruption 1 | . 2 2 2 2 1 Corruption Purged . | . . . . . . Effects 19 | . . 5 10 4 . Message Errors 6 | . . 2 4 . . Heat Flow Errors 4 | . . . 3 1 . Energy Discharges 3 | . . 1 1 1 . Data Loss (minor) 5 | . . 2 2 1 . Targeting Errors 1 | . . . . 1 . Overload Shots . | . . . . . . Overflow Damage . | . . . . . . Projectiles . | . . . . . . Explosions . | . . . . . . Melee . | . . . . . . Knockbacks . | . . . . . . Impact . | . . . . . . Kinetic . | . . . . . . Secondary . | . . . . . . Self-Inflicted Damage 73 | . 25 . . 41 7 Shots 2 | . 1 . . 1 . Rammed 7 | . . . . 1 6 Targets Rammed 7 | . . . . 1 6 Kicked . | . . . . . . Crushed . | . . . . . . Highest Temperature 264 | . 98 18 264 97 90 Average Temperature 64 | . 43 10 122 23 34 Received Heat Transfer 624 | . 36 . . . 588 Effects 1 | . . . 1 . . Energy Bleed 1 | . . . 1 . . Siege Activations . | . . . . . . Robots Corrupted . | . . . . . . Combat Hostiles . | . . . . . . Parts Fried . | . . . . . . Impact Corruptions . | . . . . . . Robots Melted . | . . . . . . Combat Hostiles . | . . . . . . Parts Melted . | . . . . . . Heat Transferred 350 | . 175 . . 50 125 Parts Sabotaged . | . . . . . . Parts Stolen . | . . . . . . Parts Stripped . | . . . . . . Power Chain Reactions 1 | . . . . 1 . Missiles Intercepted . | . . . . . . Alert | -11 -10 -10 -10 -9 -8 ------- Run | Scr Mat Min Exi Min Mat Peak Influence 181 | . 154 181 . 117 51 Initial 60 | . . 60 . . 16 Average 90 | . 87 133 . 98 14 Maximum Alert Level . | . . . . . . Low Security (%) 100 | 100 100 100 . 100 100 Level 1 . | . . . . . . Level 2 . | . . . . . . Level 3 . | . . . . . . Level 4 . | . . . . . . Level 5 . | . . . . . . High Security . | . . . . . . Max Security . | . . . . . . Squads Dispatched 1 | . 1 . . . . Investigation 1 | . 1 . . . . Extermination . | . . . . . . Reinforcement . | . . . . . . Assault . | . . . . . . Garrison . | . . . . . . Intercept . | . . . . . . Construction Impeded . | . . . . . . Haulers Reinforced . | . . . . . . Stealth | -11 -10 -10 -10 -9 -8 --------- Run | Scr Mat Min Exi Min Mat Distress Signals . | . . . . . . Communications Jammed . | . . . . . . Distress Signals . | . . . . . . Times Spotted 39 | . 8 3 . 13 15 Peak Tracking Total 13 | . 3 3 . 4 13 Tactical Retreats 3 | . . . . 2 1 Traps | -11 -10 -10 -10 -9 -8 ------- Run | Scr Mat Min Exi Min Mat Traps Triggered 1 | . 1 . . . . Indirectly . | . . . . . . Trap Hack Attempts . | . . . . . . Triggered . | . . . . . . Disarmed . | . . . . . . Reprogrammed . | . . . . . . Reused . | . . . . . . Traps Extracted . | . . . . . . Installed . | . . . . . . Triggered . | . . . . . . Machines | -11 -10 -10 -10 -9 -8 ---------- Run | Scr Mat Min Exi Min Mat Machines Disabled 1 | . . 1 . . . Max in Single Turn 1 | . . 1 . . . Machines Sabotaged . | . . . . . . Garrisons Compromised . | . . . . . . Overloaded Fab Kills . | . . . . . . Fab Network Shutdowns . | . . . . . . Hacking | -11 -10 -10 -10 -9 -8 --------- Run | Scr Mat Min Exi Min Mat Machines Accessed 3 | . 2 . . . 1 Terminals 3 | . 2 . . . 1 Fabricators . | . . . . . . Repair Stations . | . . . . . . Recycling Units . | . . . . . . Scanalyzers . | . . . . . . Garrison Access . | . . . . . . Total Hacks 14 | . 8 . . . 6 Successful 5 | . 2 . . . 3 Failed 9 | . 6 . . . 3 Catastrophic 1 | . 1 . . . . Database Lockouts . | . . . . . . Manual 15 | . 8 . 1 . 6 Terminals 14 | . 8 . . . 6 Fabricators . | . . . . . . Repair Stations . | . . . . . . Recycling Units . | . . . . . . Scanalyzers . | . . . . . . Garrison Access . | . . . . . . Terminal Hacks 3 | . . . . . 3 Level Access Points 1 | . . . . . 1 Unreport Threat 2 | . . . . . 2 Fabricator Hacks . | . . . . . . Repair Station Hacks . | . . . . . . Recycling Unit Hacks . | . . . . . . Scanalyzer . | . . . . . . Garrison Access Hacks . | . . . . . . Unauthorized Hacks 2 | . 2 . . . . Terminals 2 | . 2 . . . . Botnet 2 | . 2 . . . . Fabricators . | . . . . . . Repair Stations . | . . . . . . Recycling Units . | . . . . . . Scanalyzers . | . . . . . . Garrison Access . | . . . . . . Data Cores Recovered . | . . . . . . Used . | . . . . . . Hacking Detections 3 | . 2 . . . 1 Full Trace Events 1 | . 1 . . . . Feedback Events . | . . . . . . Feedback Blocked . | . . . . . . Robot Schematics Acquired . | . . . . . . Robots Built . | . . . . . . Matter . | . . . . . . Time . | . . . . . . Total Robot Build Rating . | . . . . . . Part Schematics Acquired . | . . . . . . Parts Built . | . . . . . . Matter . | . . . . . . Time . | . . . . . . Total Part Build Rating . | . . . . . . Parts Repaired . | . . . . . . Time . | . . . . . . Parts Recycled . | . . . . . . Recycled Matter . | . . . . . . Retrieved Matter . | . . . . . . Retrieved Components . | . . . . . . Parts Scanalyzed . | . . . . . . Part Schematics Acquired . | . . . . . . Parts Damaged . | . . . . . . Bothacking | -11 -10 -10 -10 -9 -8 ------------ Run | Scr Mat Min Exi Min Mat Used RIF Installer . | . . . . . . Robots Hacked . | . . . . . . Non-combat . | . . . . . . Combat . | . . . . . . Robot Hacks Applied . | . . . . . . Relay Couplers Released . | . . . . . . Robots Rewired 5 | . . . 5 . . Allies Hacked . | . . . . . . Hacks Repelled . | . . . . . . Allies | -11 -10 -10 -10 -9 -8 -------- Run | Scr Mat Min Exi Min Mat Total Allies 8 | . . 3 5 . . Largest Group 6 | . . 3 6 6 . Highest-Rated Group 82 | . . 40 82 82 . Highest-Rated Ally 21 | . . 16 21 21 . Total Orders 2 | . . 2 . . . ROAM 1 | . . 1 . . . FOLLOW 1 | . . 1 . . . Ally Attacks 31 | . . 10 . 21 . Total Damage 352 | . . 122 . 230 . Kills 8 | . . 2 . 6 . Allies Corrupted . | . . . . . . Allies Melted . | . . . . . . Intel | -11 -10 -10 -10 -9 -8 ------- Run | Scr Mat Min Exi Min Mat Robot Analysis Total . | . . . . . . Derelict Logs Recovered 3 | . . 2 . 1 . Drone Launches . | . . . . . . Drone Recoveries . | . . . . . . Exploration | -11 -10 -10 -10 -9 -8 ------------- Run | Scr Mat Min Exi Min Mat Turns Passed 2208 | 53 137 406 1031 376 205 Spaces Moved 1641 | 42 102 356 674 292 175 Core 107 | 2 . . . . 105 Treads 368 | 5 . . 363 . . Legs . | . . . . . . Wheels 997 | 35 102 356 311 188 5 Hover 167 | . . . . 104 63 Flight 2 | . . . . . 2 Fastest Speed 50 | 50 80 80 90 76 76 Average Speed 103 | 88 83 85 127 85 95 Slowest Speed 300 | 160 90 90 160 90 300 Overloaded Moves . | . . . . . . Propulsion Burnouts . | . . . . . . Robots Hopped . | . . . . . . Cave-ins Triggered . | . . . . . . Exploration Rate (%) 42 | 3 25 63 93 38 30 Regions Visited 5 Branch Regions 3 Pre-discovered Areas 2 | . . 2 . . . Known Exits Taken . | . . . . . . Unknown Exits Taken 5 | 1 1 1 1 1 . Scrap Searched . | . . . . . . Spaces Dug . | . . . . . . Terrain Destroyed 33 | . 15 7 . 11 . Melee . | . . . . . . Projectile . | . . . . . . AOE 33 | . 15 7 . 11 . Terrain Rammed . | . . . . . . Walls Destroyed . | . . . . . . Machines Disabled . | . . . . . . Actions | -11 -10 -10 -10 -9 -8 --------- Run | Scr Mat Min Exi Min Mat Total 2098 | 54 129 451 847 410 207 Wait 271 | 1 . 88 79 96 7 Move 1636 | 41 101 355 673 291 175 Hop . | . . . . . . Pick Up 21 | 6 4 . 4 3 4 Fast Attach 21 | 6 3 1 1 5 5 Attach 11 | . 1 . 1 3 6 Detach 4 | . 1 . 1 1 1 Swap 7 | . 2 3 . . 2 Drop 18 | . 5 2 6 5 . Fire 20 | . 12 2 . 5 1 Melee . | . . . . . . Ram 7 | . . . . 1 6 Kick . | . . . . . . Crush . | . . . . . . Escape Stasis . | . . . . . . Rewire 82 | . . . 82 . . Trap . | . . . . . . Miscellaneous . | . . . . . . Route ------- -11/Scrapyard -10/Materials -10/Mines (discovered 2 exits: [*Mat] / *Exi) -10/Exiles (discovered 2 exits: [*Min x2]) -9/Mines -8/Materials (discovered 3 exits: Fac x3) History --------- Turn | Location | Event 14 | -11/Scrapyard | Discovered new exit (range 16) 54 | -11/Scrapyard | Entered Materials 173 | -10/Materials | Discovered new exit (range 12) 191 | -10/Materials | Entered Mines 201 | -10/Mines | Learned location of Zion (-7) 327 | -10/Mines | Build established: Mutant 327 | -10/Mines | Discovered new exit (range 6) 370 | -10/Mines | Assisted by bots powering up and referring to "LRC-V3" 578 | -10/Mines | Deemed a non-threat by the Exiles lab entrance 579 | -10/Mines | Discovered new exit (range 5) 597 | -10/Mines | Entered Exiles 597 | -10/Exiles | Found Exiles lab destroyed 597 | -10/Exiles | Accompanied by 1 ally 614 | -10/Exiles | Discovered new exit (range 15) 762 | -10/Exiles | Build established: Scavenger-Mutant 1213 | -10/Exiles | Opened EX-Vault 1222 | -10/Exiles | Found Prototype Device 1222 | -10/Exiles | Identified Cloak of Protection 1345 | -10/Exiles | Build established: Commander-Mutant 1454 | -10/Exiles | Discovered new exit (range 12) 1628 | -10/Exiles | Entered Mines 1628 | -9/Mines | Accompanied by 6 allies 1644 | -9/Mines | Met a Derelict bent on vengeance 1647 | -9/Mines | Learned Materials trap positions 1806 | -9/Mines | Assembled infested the area 1811 | -9/Mines | Assisted by a Guerilla fighting off Assembled 1994 | -9/Mines | Discovered new exit (range 3) 2004 | -9/Mines | Entered Materials 2004 | -8/Materials | Evolved 4 slots: Power x1, Propulsion x1, Utility x2 2005 | -8/Materials | Loaded intel: 10 trap records 2029 | -8/Materials | Lost 5 parts (1p1u3w) 2125 | -8/Materials | Lost 8 parts (2p3n1u2w) 2147 | -8/Materials | Core integrity fell below 50% 2193 | -8/Materials | Identified exit to Factory 2197 | -8/Materials | Core integrity fell below 20% 2209 | -8/Materials | Destroyed by G-47 Trooper with Particle Gun Last Messages --------------- 02181_ U-05 Engineer lays Concrete. 02185_ K-01 Serf cleans the Atomic Centrifuge. 02189_ Acquired Shield Generator. 02193_ Connecting with Terminal... 02193_ Current location identified: Materials >>Alert(Purge) Purged threat record, alert level lowered. >>Alert(Purge) No threats on record. >>Access(Main) Found 3 level access points to Factory: (17,8) (13,85) (85,85) Map updated. 02193_ K-01 Serf cleans the Atomic Centrifuge. 02194_ Slammed into G-47 Trooper. 02200_ Flight Unit destroyed. 02207_ Sml. Storage Unit destroyed. 02208_ Acquired Cloak of Protection. Map ----- +----------------------------------------------------+ | ?????????????#? ? ###?##### ##########/########?# | | ????????????? ? ?? ###?#?### # # ########## | | ???????????????? ??#?###### # """"" # | | ???????????????????###?##### # """"" + | | ?????????????#?????#??###### # """"" # | | ????????????############ # ############ | | ??????????? # ##?##?###### | | ??????????? # ############ | | ??????????? # ############ | | ????????????############ ############?####?#?# | | ???????????############## ###################### | | ???????????# T # g # ? ####?## | | ???????????????"" """ #guY# """####### | | ???????????????"" """ + + """####### | | ???????????? """ """ #g g# R"#?##?## | | ???????????# #gu # """####?##?##### | | ???????????##############gYg#?? ##?###? ? | | ?????????????????###????# g #?? #?#?## ? ? | | ?????????????????# ??# #?? ###### ?? | | ?????????????????# " # # ?? ? #?#??#? ? | | ?????????????????# T ; #?#?#?#?###?#??? ??? | | ?????????????????# " ! # #????????#???##? ?? ? | | ?????????????????# ??# a#???????????????? ??? | | ?????????????????# ????# #???????????????? ???? | | ?????????????????#??????# #??????????????????#?? | | ????????????????????????#@ #?????????????#??????? | | ????????????????????????# #??????????????????? | | ????????????????????????# #????????????????????? | | ????????????????????????# a#???????????????? ??? | | ????????????????????????# #?????????????????#??? | | ????????????????????????# #????????????????????? | | ????????????????????????# #????????????????????? | | ????????????????????????# +????????????????????? | | ????????????????????????# #????????????????????? | | ????????????????????????? #????????????????????? | | ????????????????????????? #????????????????????? | | ????????????????????????? #????????????????????? | | ????????????????????????? #????????????????????? | | ????????????????????????? ????????????????????? | | ????????????????????????? ????????????????????? | | ????????????????????????? ?????????????????????? | | ?????????????????????????????????????????????????? | | ?????????????????????????????????????????????????? | | ?????????????????????????????????????????????????? | | ?????????????????????????????????????????????????? | | ?????????????????????????????????????????????????? | | ?????????????????????????????????????????????????? | | ?????????????????????????????????????????????????? | | ?????????????????????????????????????????????????? | | ?????????????????????????????????????????????????? | +----------------------------------------------------+ Best States ------------- Heat Dissipation 31 Energy Generation 15 Energy Capacity 160 Matter Stores 300 Matter Capacity 300 Sight Range 16 Terrain Scan Range 16 Terrain Scan Density 410 Cloak Strength 5 Armor Coverage 150 Evasion (%) 49 Recoil Reduction 1 Item Schematics ----------------- None Robot Schematics ------------------ None Fabricated ------------ Nothing Alien Tech Used ----------------- None Achievements -------------- None Challenges ------------ None Game ------ Seed LobotomyMagneticSegregator Manual? 0 Play Time 00:25:52 Cumulative 35.7 hours Start 2021.07.23 @ 17:42:28 End 2021.07.23 @ 18:08:48 Sessions 1 Manual Loads 0 Difficulty Rogue Special Mode None Game No. 37 Rogue 37 Adventurer 0 Explorer 0 Win Type - Total 0 Types 0/0/0/0/0/0/0/0/0 Lore% 26 Gallery% 32 Achievement% 25 Wizard Run 0 Options --------- ASCII 0 Keyboard 1 Movement Numpad Keybinds 0 Fullscreen 2 Font 36/X11 Map View 76x50 Tactical HUD 1 Map Filters NONE Filters NONE Steam 1 RUN: 6dd5f50c-94a9-4019-959c-1c130dd18e86